Cogmind - Beta 10.2 --- EXPLORER MODE // 2021.05.25 @ 13:32:30 // Winter2019/RPGLIKE Player: H_ Result: Self-destructed Performance ------------- Evolutions (1) 500 Regions Visited (4) 800 Robots Destroyed (71) 355 Value Destroyed (1871) 1871 Prototype IDs (16) 320 Alien Tech Used (0) 0 Bonus (135) 135 TOTAL SCORE: 3981 Bonus ------- Follower Combat Kills 162 Friendly Fire -27 Cogmind --------- Core Integrity 600/600 Matter 228/300 Energy 456/460 System Corruption 1% Temperature Cool (0) Movement Rolling (82) Location -9/Storage Parts ------- > --- POWER (2) -------- Cooled Ion Engine Cooled Ion Engine > --- PROPULSION (4) --- Wheel Wheel Wheel Armored Wheel > --- UTILITY (6) ------ Improved Sensor Array Improved Terrain Scanner Experimental Targeting Computer Hacking Suite Drone Bay (2/2) > --- WEAPON (4) ------- Mini Assault Cannon Guided Missile Launcher Mining Laser > --- INVENTORY (4) ---- Datajack Plasma Cutter Peak State ------------ > --- POWER ------------ Cooled Ion Engine Cooled Ion Engine > --- PROPULSION ------- Wheel Wheel Wheel Armored Wheel > --- UTILITY ---------- Improved Sensor Array Improved Terrain Scanner Experimental Targeting Computer Hacking Suite Drone Bay > --- WEAPON ----------- Mini Assault Cannon Guided Missile Launcher Plasma Cutter > --- INVENTORY -------- Datajack Mining Laser [Rating: 46] Favorites ----------- Power Light Ion Engine Engine Light Ion Engine Power Core Light Nuclear Core Propulsion Wheel Wheel Wheel Utility Improved Terrain Scanner Device Improved Terrain Scanner Processor Targeting Computer Hackware Hacking Suite Weapon Mining Laser Energy Gun EM Shotgun Energy Cannon Light EM Pulse Cannon Ballistic Gun Minigun Ballistic Cannon Mini Assault Cannon Launcher Guided Missile Launcher Special Weapon Mining Laser Special Melee Weapon Datajack Build | -11 -10 -10 -9 -9 ------- Run | Scr Mat Min Mat Sto Slots Evolved 12 | 6 . . . 6 Power 1 | 1 . . . . Propulsion 3 | 1 . . . 2 Utility 5 | 3 . . . 2 Weapon 3 | 1 . . . 2 Parts Attached 75 | 12 8 1 24 30 Power 9 | 3 1 1 2 2 Engine 7 | 3 1 1 . 2 Core 2 | . . . 2 . Reactor . | . . . . . Propulsion 11 | 4 1 . 1 5 Treads . | . . . . . Leg . | . . . . . Wheel 11 | 4 1 . 1 5 Hover . | . . . . . Flight . | . . . . . Utility 12 | 3 3 . 3 3 Device 8 | 2 3 . 1 2 Storage . | . . . . . Processor 3 | 1 . . 1 1 Hackware 1 | . . . 1 . Protection . | . . . . . Artifact . | . . . . . Weapon 43 | 2 3 . 18 20 Energy Gun 9 | 2 2 . 5 . Energy Cannon 1 | . . . 1 . Ballistic Gun 5 | . . . 5 . Ballistic Cannon 7 | . . . . 7 Launcher 3 | . . . 1 2 Special Weapon 15 | . 1 . 5 9 Impact Weapon . | . . . . . Slashing Weapon . | . . . . . Piercing Weapon . | . . . . . Special Melee Weapon 3 | . . . 1 2 Unidentified Prototypes 3 | . . . . 3 Parts Lost . | . . . . . Power . | . . . . . Propulsion . | . . . . . Utility . | . . . . . Weapon . | . . . . . Highest Loss Streak . | . . . . . Average Slot Usage (%) 95 | . 82 100 99 92 Engine 15 | . 20 20 15 6 Core 3 | . . . 4 9 Wheel 20 | . 20 20 20 22 Device 25 | . 12 30 29 23 Processor 6 | . 10 10 4 2 Hackware 3 | . . . 5 7 Energy Gun 6 | . 12 10 6 . Energy Cannon 1 | . . . 3 2 Ballistic Cannon 1 | . . . . 5 Special Weapon 9 | . 7 10 10 7 Naked Turns . | . . . . . Heaviest Build 39 | 11 13 13 18 39 Greatest Support 47 | 31 25 25 25 47 Greatest Overweight (x) 1 | . . . . 1 Average Overweight (x) . | . . . . . Largest Inventory Capacity 4 | 2 2 2 3 4 Average Capacity 2 | 2 2 2 2 3 Most Carried 4 | 2 2 2 3 4 Average Carried 2 | . 1 1 2 2 Final Capacity 4 | 2 2 2 3 4 Final Carried 2 | . 2 2 2 2 Class Distribution -------------------- 89% | Hacker-Mutant 5% | Commander-Mutant Dominant Class ---------------- Hacker-Mutant | -10/Materials Hacker-Mutant | -10/Mines Hacker-Mutant | -9/Materials Hacker-Mutant | -9/Storage Resources | -11 -10 -10 -9 -9 ----------- Run | Scr Mat Min Mat Sto Matter Collected 1223 | 313 87 . 250 573 Remotely . | . . . . . Salvage Created 2216 | 156 159 . 657 1244 Parts 162 | 13 14 . 59 76 Haulers Intercepted 5 | . . . . 5 Recyclers Shooed . | . . . . . Parts Field Recycled . | . . . . . Retrieved Matter . | . . . . . Parts Self-Destructed . | . . . . . Prevented . | . . . . . Kills | -11 -10 -10 -9 -9 ------- Run | Scr Mat Min Mat Sto Combat Hostiles Destroyed 48 | . 4 . 21 23 Guns 14 | . 2 . 12 . Cannons 25 | . . . 7 18 AOE 6 | . 2 . . 4 Classes Destroyed 11 | 2 3 . 2 4 Worker 2 | . 1 . . 1 Tunneler 5 | 5 . . . . Hauler 5 | . . . . 5 Recycler 1 | 1 . . . . Operator 1 | . . . . 1 Watcher 9 | . 3 . 5 1 Swarmer 12 | . 4 . 6 2 Grunt 16 | . . . 8 8 Duelist 1 | . . . . 1 Protector 1 | . . . . 1 Sentry 18 | . . . 7 11 Best Kill Streak 6 | 4 5 . 6 5 Combat Bots Only 5 | . 4 . 3 5 Max Kills in Single Turn 4 | 1 3 . 1 4 Gunslinging 1 | . 1 . . . Exploded 4 | . 2 . . 4 Melee . | . . . . . Uniques/NPCs Destroyed . | . . . . . Combat | -11 -10 -10 -9 -9 -------- Run | Scr Mat Min Mat Sto Damage Taken 1923 | . 297 . 892 734 Core 1561 | . 253 . 711 597 Absorbed by Shields . | . . . . . Redirected to Core 1179 | . 172 . 549 458 Core Remaining (%) 78 | 100 . 57 . . Volleys Fired 241 | 11 30 . 102 98 Largest 4 | 2 2 . 1 4 Hottest 400 | 100 100 . 100 400 Shots Fired 270 | 22 35 . 102 111 Gun 99 | 22 12 . 65 . Cannon 85 | . . . 20 65 Launcher 7 | . . . . 7 Special 79 | . 23 . 17 39 Kinetic 40 | . . . . 40 Thermal 101 | 22 23 . 17 39 Explosive 7 | . . . . 7 Electromagnetic 122 | . 12 . 85 25 Robot Hit Streak 35 | 18 26 . 18 35 Robot Miss Streak 2 | . 1 . 2 1 Penetration Max . | . . . . . Secondary Targets 1 | . 1 . . . Max Gunslinging Chain 1 | . 1 . . . Shots Hit Robots 178 | 18 11 . 78 71 Core Hits 88 | 7 9 . 36 36 Critical Hits 1 | . . . . 1 Critical Kills . | . . . . . Critical Parts Destroyed 1 | . . . . 1 Melee Attacks 10 | . . . 1 9 Impact . | . . . . . Slashing . | . . . . . Piercing . | . . . . . Sneak Attacks 7 | . . . 1 6 Combat Hostiles . | . . . . . Follow-up Attacks . | . . . . . Damage Inflicted 4214 | 224 310 . 1663 2017 Guns 1590 | 224 225 . 1141 . Cannons 1890 | . . . 389 1501 Explosions 637 | . 85 . 107 445 Melee . | . . . . . Ramming . | . . . . . Kinetic 939 | . . . . 939 Thermal 513 | 224 85 . 133 71 Explosive 445 | . . . . 445 Electromagnetic 2317 | . 225 . 1530 562 Impact . | . . . . . Slashing . | . . . . . Piercing . | . . . . . Highest Corruption 1 | . . . . 1 Average Corruption 1 | . . . . 1 Corruption Purged . | . . . . . Effects 4 | . . . . 4 Message Errors 2 | . . . . 2 Energy Discharges 1 | . . . . 1 Targeting Errors 1 | . . . . 1 Overload Shots . | . . . . . Overflow Damage 3 | . . . . 3 Projectiles 3 | . . . . 3 Explosions . | . . . . . Melee . | . . . . . Knockbacks 3 | . . . . 3 Impact . | . . . . . Kinetic 2 | . . . . 2 Secondary 1 | . . . . 1 Self-Inflicted Damage 38 | . 11 . 27 . Shots 2 | . 1 . 1 . Rammed . | . . . . . Targets Rammed . | . . . . . Kicked . | . . . . . Crushed . | . . . . . Highest Temperature 5 | . . . 5 . Average Temperature 5 | . . . 5 . Received Heat Transfer 675 | . . . 456 219 Siege Activations . | . . . . . Robots Corrupted 3 | . . . 2 1 Combat Hostiles 3 | . . . 2 1 Parts Fried 18 | . . . 13 5 Impact Corruptions . | . . . . . Robots Melted . | . . . . . Combat Hostiles . | . . . . . Parts Melted 2 | 2 . . . . Heat Transferred 1212 | 666 50 . 274 222 Parts Sabotaged . | . . . . . Parts Stolen . | . . . . . Parts Stripped . | . . . . . Power Chain Reactions 4 | . 2 . 2 . Missiles Intercepted . | . . . . . Alert | -11 -10 -10 -9 -9 ------- Run | Scr Mat Min Mat Sto Peak Influence 306 | 30 173 8 306 288 Initial 17 | . 14 8 . 17 Average 55 | 16 53 1 61 109 Maximum Alert Level 1 | . . . 1 1 Low Security (%) 93 | 100 100 100 92 82 Level 1 6 | . . . 7 17 Level 2 . | . . . . . Level 3 . | . . . . . Level 4 . | . . . . . Level 5 . | . . . . . High Security . | . . . . . Max Security . | . . . . . Squads Dispatched 8 | . 2 . 3 3 Investigation 6 | . 2 . 3 1 Extermination . | . . . . . Reinforcement . | . . . . . Assault 2 | . . . . 2 Garrison . | . . . . . Intercept . | . . . . . Construction Impeded . | . . . . . Haulers Reinforced . | . . . . . Stealth | -11 -10 -10 -9 -9 --------- Run | Scr Mat Min Mat Sto Distress Signals 5 | . . . 3 2 Communications Jammed . | . . . . . Distress Signals . | . . . . . Times Spotted 85 | . 9 . 40 36 Peak Tracking Total 9 | . 4 . 4 9 Tactical Retreats 7 | . . . 5 2 Traps | -11 -10 -10 -9 -9 ------- Run | Scr Mat Min Mat Sto Traps Triggered 5 | . 1 . . 4 Indirectly . | . . . . . Trap Hack Attempts . | . . . . . Triggered . | . . . . . Disarmed 31 | . 12 . 9 10 Reprogrammed . | . . . . . Reused . | . . . . . Traps Extracted . | . . . . . Installed . | . . . . . Triggered . | . . . . . Machines | -11 -10 -10 -9 -9 ---------- Run | Scr Mat Min Mat Sto Machines Disabled 6 | . . . 1 5 Max in Single Turn 1 | . . . 1 1 Garrison Access 1 | . . . . 1 Machines Sabotaged . | . . . . . Garrisons Compromised . | . . . . . Overloaded Fab Kills . | . . . . . Fab Network Shutdowns . | . . . . . Hacking | -11 -10 -10 -9 -9 --------- Run | Scr Mat Min Mat Sto Machines Accessed 38 | . 11 . 15 12 Terminals 28 | . 8 . 11 9 Fabricators . | . . . . . Repair Stations 3 | . 1 . 1 1 Recycling Units 5 | . 2 . 2 1 Scanalyzers 1 | . . . 1 . Garrison Access 1 | . . . . 1 Total Hacks 219 | . 72 . 102 45 Successful 187 | . 56 . 86 45 Failed 32 | . 16 . 16 . Catastrophic . | . . . . . Database Lockouts . | . . . . . Manual 181 | . 55 . 92 34 Terminals 187 | . 63 . 88 36 Fabricators . | . . . . . Repair Stations 6 | . 3 . 2 1 Recycling Units 17 | . 6 . 7 4 Scanalyzers 5 | . . . 5 . Garrison Access 4 | . . . . 4 Terminal Hacks 104 | . 34 . 46 24 Record 1 | . 1 . . . Part Schematic 7 | . . . 2 5 Robot Schematic 2 | . 2 . . . Robot Analysis 15 | . 9 . 5 1 Prototype ID Bank 18 | . 1 . 13 4 Open Door 4 | . . . . 4 Level Access Points 2 | . . . 1 1 Branch Access Points 4 | . 2 . 1 1 Emergency Access Points 4 | . 2 . 1 1 Machine Index 1 | . . . . 1 Terminal Index 2 | . 1 . 1 . Fabricator Index 2 | . . . 2 . Repair Station Index 2 | . 1 . 1 . Recycling Unit Index 3 | . 1 . 2 . Scanalyzer Index 1 | . . . 1 . Garrison Index 2 | . 1 . 1 . Alert Level 1 | . . . 1 . Unreport Threat 3 | . 1 . 2 . Locate Traps 8 | . 4 . 3 1 Disarm Traps 6 | . 2 . 2 2 Hauler Manifests 1 | . 1 . . . Registered Components 1 | . . . 1 . Registered Prototypes 1 | . . . 1 . Zone Layout 13 | . 5 . 5 3 Fabricator Hacks . | . . . . . Repair Station Hacks 2 | . 2 . . . Scan Component 1 | . 1 . . . Repair 1 | . 1 . . . Recycling Unit Hacks 4 | . 2 . 1 1 Report Inventory 4 | . 2 . 1 1 Scanalyzer 4 | . . . 4 . Insert Component 2 | . . . 2 . Analyze 2 | . . . 2 . Garrison Access Hacks 1 | . . . . 1 Seal Access 1 | . . . . 1 Unauthorized Hacks 72 | . 18 . 35 19 Terminals 52 | . 13 . 27 12 Track 18 | . 5 . 9 4 Assimilate 4 | . . . 3 1 Botnet 23 | . 7 . 11 5 Disrupt 3 | . . . 2 1 Operators 4 | . 1 . 2 1 Fabricators . | . . . . . Repair Stations 3 | . 1 . 1 1 Mechanics 3 | . 1 . 1 1 Recycling Units 13 | . 4 . 6 3 Monitor 4 | . 1 . 2 1 Recyclers 4 | . 1 . 2 1 Tunnel 5 | . 2 . 2 1 Scanalyzers 1 | . . . 1 . Extract 1 | . . . 1 . Garrison Access 3 | . . . . 3 Broadcast 1 | . . . . 1 Redirect 1 | . . . . 1 Watchers 1 | . . . . 1 Data Cores Recovered 1 | . . . . 1 Used 1 | . . . . 1 Hacking Detections 29 | . 9 . 13 7 Full Trace Events . | . . . . . Feedback Events . | . . . . . Feedback Blocked . | . . . . . Robot Schematics Acquired 2 | . 2 . . . Robots Built . | . . . . . Matter . | . . . . . Time . | . . . . . Total Robot Build Rating . | . . . . . Part Schematics Acquired 20 | . . . 15 5 Parts Built . | . . . . . Matter . | . . . . . Time . | . . . . . Total Part Build Rating . | . . . . . Parts Repaired 1 | . 1 . . . Time 32 | . 32 . . . Parts Recycled . | . . . . . Recycled Matter . | . . . . . Retrieved Matter . | . . . . . Retrieved Components . | . . . . . Parts Scanalyzed 2 | . . . 2 . Part Schematics Acquired 2 | . . . 2 . Parts Damaged . | . . . . . Bothacking | -11 -10 -10 -9 -9 ------------ Run | Scr Mat Min Mat Sto Used RIF Installer . | . . . . . Robots Hacked 4 | . . . 1 3 Non-combat 4 | . . . 1 3 Combat . | . . . . . Robot Hacks Applied 4 | . . . 1 3 no_distress 4 | . . . 1 3 Relay Couplers Released . | . . . . . Robots Rewired 1 | . . . . 1 Allies Hacked . | . . . . . Hacks Repelled . | . . . . . Allies | -11 -10 -10 -9 -9 -------- Run | Scr Mat Min Mat Sto Total Allies 16 | . . . 3 13 Largest Group 13 | . . . 2 13 Highest-Rated Group 160 | . . . 20 160 Highest-Rated Ally 31 | . . . 10 31 Total Orders 18 | . . . 4 14 STAY 8 | . . . 2 6 FOLLOW 5 | . . . 2 3 GUARD 1 | . . . . 1 EXPLORE 4 | . . . . 4 Ally Attacks 51 | . . . . 51 Total Damage 519 | . . . . 519 Kills 7 | . . . . 7 Allies Corrupted . | . . . . . Allies Melted . | . . . . . Intel | -11 -10 -10 -9 -9 ------- Run | Scr Mat Min Mat Sto Robot Analysis Total 15 | . 9 . 5 1 Derelict Logs Recovered . | . . . . . Drone Launches 18 | . . . . 18 Drone Recoveries 4 | . . . . 4 Exploration | -11 -10 -10 -9 -9 ------------- Run | Scr Mat Min Mat Sto Turns Passed 7805 | 111 1238 2157 2278 2021 Spaces Moved 6101 | 63 848 1484 1872 1834 Core 30 | 30 . . . . Treads . | . . . . . Legs . | . . . . . Wheels 6071 | 33 848 1484 1872 1834 Hover . | . . . . . Flight . | . . . . . Fastest Speed 50 | 50 80 80 80 80 Average Speed 80 | 68 80 80 80 81 Slowest Speed 95 | 90 80 80 80 95 Overloaded Moves . | . . . . . Propulsion Burnouts . | . . . . . Robots Hopped . | . . . . . Cave-ins Triggered 2 | . 1 . . 1 Exploration Rate (%) 78 | 3 95 101 94 97 Regions Visited 4 Branch Regions 2 Pre-discovered Areas 6 | . 2 1 2 1 Known Exits Taken 4 | 1 1 1 1 . Unknown Exits Taken . | . . . . . Scrap Searched . | . . . . . Spaces Dug 47 | . 23 . 15 9 Terrain Destroyed 109 | . 28 . 20 61 Melee . | . . . . . Projectile 50 | . 23 . 15 12 AOE 59 | . 5 . 5 49 Terrain Rammed . | . . . . . Walls Destroyed . | . . . . . Machines Disabled . | . . . . . Actions | -11 -10 -10 -9 -9 --------- Run | Scr Mat Min Mat Sto Total 8577 | 108 1325 2454 2520 2170 Wait 1926 | 8 429 967 422 100 Move 6096 | 62 847 1483 1871 1833 Hop . | . . . . . Pick Up 47 | 11 6 1 15 14 Fast Attach 24 | 1 3 . 13 7 Attach 15 | 8 . . . 7 Detach . | . . . . . Swap 36 | 3 5 1 11 16 Drop 58 | 4 5 2 29 18 Fire 241 | 11 30 . 102 98 Melee 10 | . . . 1 9 Ram . | . . . . . Kick . | . . . . . Crush . | . . . . . Escape Stasis 25 | . . . . 25 Rewire . | . . . . . Trap . | . . . . . Miscellaneous 99 | . . . 56 43 Route ------- -11/Scrapyard -10/Materials (discovered 5 exits: *Mat x3 / *Min x2) -10/Mines (discovered 2 exits: *Mat x2) -9/Materials (discovered 5 exits: *Mat x3 / *Min / *Sto) -9/Storage (discovered 2 exits: *Mat / Rec) History --------- Turn | Location | Event 1 | -11/Scrapyard | Upgraded with Power slot (x1) 1 | -11/Scrapyard | Upgraded with Propulsion slot (x1) 1 | -11/Scrapyard | Upgraded with Utility slot (x3) 1 | -11/Scrapyard | Upgraded with Weapon slot (x1) 18 | -11/Scrapyard | Identified exit to Materials 18 | -11/Scrapyard | Discovered exit to Materials (range 15) 112 | -11/Scrapyard | Entered Materials 262 | -10/Materials | Identified exit to Mines 262 | -10/Materials | Discovered exit to Mines (range 12) 314 | -10/Materials | Build established: Hacker-Mutant 496 | -10/Materials | Identified exit to Materials 496 | -10/Materials | Discovered exit to Materials (range 10) 518 | -10/Materials | Discovered exit to Materials (range 9) 845 | -10/Materials | Crushed by falling debris 897 | -10/Materials | Discovered exit to Materials (range 16) 1134 | -10/Materials | Repaired Imp. Terrain Scanner 1350 | -10/Materials | Entered Mines 1765 | -10/Mines | Learned location of Storage (-9) 1765 | -10/Mines | Discovered exit to Materials (range 15) 1813 | -10/Mines | Discovered exit to Materials (range 8) 1850 | -10/Mines | YI-UF0 nonchalantly dropped a Grenade Launcher on the ground 3507 | -10/Mines | Entered Materials 3509 | -9/Materials | Reached level 2 3509 | -9/Materials | Reached level 3 3509 | -9/Materials | Reached level 4 3522 | -9/Materials | Identified exit to Storage 3522 | -9/Materials | Discovered exit to Storage (range 11) 4039 | -9/Materials | Identified exit to Mines 4039 | -9/Materials | Discovered exit to Mines (range 15) 4506 | -9/Materials | Identified exit to Materials 4506 | -9/Materials | Discovered exit to Materials (range 17) 4604 | -9/Materials | Reached level 5 5270 | -9/Materials | Reached level 6 5785 | -9/Materials | Entered Storage 5785 | -9/Storage | Accompanied by 2 allies 5787 | -9/Storage | Reached level 7 5817 | -9/Storage | Identified exit to Recycling 6135 | -9/Storage | Crushed by falling debris 6198 | -9/Storage | Core integrity fell below 50% 6198 | -9/Storage | Reached level 8 6324 | -9/Storage | Assisted by bots powering up and referring to "LRC-V3" 6758 | -9/Storage | Upgraded with Propulsion slot (x2) 6758 | -9/Storage | Upgraded with Utility slot (x2) 6758 | -9/Storage | Upgraded with Weapon slot (x2) 6758 | -9/Storage | Found Prototype Launcher 6759 | -9/Storage | Identified Gui. Missile Launcher 6824 | -9/Storage | Found Prototype Processor 6825 | -9/Storage | Identified Exp. Targeting Computer 6834 | -9/Storage | Met a pair of Derelict thieves 6853 | -9/Storage | Reached level 9 7806 | -9/Storage | Self-destructed Last Messages --------------- 07632_ K-01 Serf destroyed. 07632_ K-01 Serf collects debris. 07634_ A-02 Transporter destroyed. 07635_ K-01 Serf collects debris. 07643_ R-06 Scavenger collects Power Shielding. 07643_ K-01 Serf collects debris. 07646_ Acquired 21 matter. 07648_ K-01 Serf collects debris. 07659_ A-02 Transporter destroyed. 07677_ Dropped Gui. Missile Launcher. 07680_ Acquired Mining Laser. 07725_ U-05 Engineer builds a Wall. 07764_ Acquired 22 matter. 07778_ Dropped Mining Laser. 07787_ Acquired Gui. Missile Launcher. 07788_ Dropped Mni. Assault Cannon. 07788_ Acquired Mni. Assault Cannon. 07790_ Dropped Mni. Assault Cannon. 07795_ Component Storage disabled. 07798_ K-01 Serf collects debris. Map ----- +----------------------------------------------------+ | #### """"" # # | | #### """"" # # | | ####[""""" # # | | ### %%= ###+####### ########## | | #####+##+##### ####### ########## | | ##### ##### ####### ########## | | ##### ##### ####### a########## | | ##### ##### ####### #### !!!## | | #?### %u ##T# !!!## | | ##### ############ # ## | | #####%##### ###### %# !!## | | ##### ### + + !!## | | ##### ### """ ## # # !!## | | #####+### """ ## % ########## | | # # """ ## ########## | | # # ## # """"" | | # # """ ## % # """"" | | # # """ ## # """"" | | # # =""" ## + | | # #*||% ## # | | # #####n##### + | | # n # nng| # | | # # nnnn # | | # + ##n#########+#####"Y"### | | # # n##n #%! #"""### | | ######### @##gk ##= """####### | | ######### # ## ] """####### | | #######?# ##|" " ## """####### | | ########""""#|" " ## """####### | | ######### #|" "g## """####### | | ######### > # """ ## ####### | | ######### # """ ## ####### | | #############g gg ## [ ####### | | ############# g################# | | #############o ################# | | ############# ################# | | ############## #################### | | ##########################?##?##?## | | ################################?## | | #########################?##?#??### | | ?#####################?###?##???#?? | | | | | | | | | | | | | | | | | | | +----------------------------------------------------+ Best States ------------- Heat Dissipation 55 Energy Generation 28 Energy Capacity 460 Matter Stores 300 Matter Capacity 300 Sight Range 16 Robot Scan Range 13 Terrain Scan Range 16 Terrain Scan Density 510 Resistance: KI 35 Resistance: TH 35 Resistance: EX 35 Resistance: EM 35 Resistance: I 35 Resistance: S 35 Resistance: P 35 Evasion (%) 50 Targeting Accuracy 12 Offensive Hacking 40 Defensive Hacking 5 Item Schematics ----------------- Imp. Grenade Launcher | -9/Materials | Scanalyzed Minigun | -9/Materials | Scanalyzed Datajack | -9/Materials | Extracted Plasma Cutter | -9/Materials | Extracted Med. Matter Pod | -9/Materials | Extracted Salvage Targeting Computer | -9/Materials | Extracted Weight Redist. System | -9/Materials | Extracted Grenade Launcher | -9/Materials | Extracted Rocket Launcher | -9/Materials | Extracted Imp. Aluminum Leg | -9/Materials | Extracted Integration Mediator | -9/Materials | Extracted Seismic Analyzer | -9/Materials | Extracted Hvy. EM Pulse Gun | -9/Materials | Extracted Imp. Sensor Array | -9/Materials | Hacked Lgt. EM Pulse Cannon | -9/Materials | Hacked Lgt. Nuclear Core | -9/Storage | Hacked Microactuators | -9/Storage | Hacked Particle Charger | -9/Storage | Hacked Mni. Grenade Launcher | -9/Storage | Hacked Trap Extractor | -9/Storage | Hacked Robot Schematics ------------------ S-10 Pest | -10/Materials | Hacked O-16 Technician | -10/Materials | Hacked Fabricated ------------ Nothing Alien Tech Used ----------------- None Achievements -------------- None Challenges ------------ None RPGLIKE | -11 -10 -10 -9 -9 --------- Run | Scr Mat Min Mat Sto Levels Raised 8 | . . . 5 3 XP Earned 18837 | 6000 935 500 7147 4255 XP Spent 16500 | 5950 . . 750 9800 Upgrades 33 | 18 . . 1 14 Power Slot 1 | 1 . . . . Propulsion Slot 3 | 1 . . . 2 Utility Slot 5 | 3 . . . 2 Weapon Slot 3 | 1 . . . 2 Heat Dissipation 5 | 5 . . . . Energy Generation 1 | 1 . . . . Mass Support 1 | 1 . . . . Inventory Capacity 4 | 2 . . 1 1 Terrain Scan Density 5 | 1 . . . 4 Ranged Accuracy 2 | . . . . 2 Hack Attack % 2 | 1 . . . 1 Hack Defense % 1 | 1 . . . . Protomatter Created 682 | . . . 479 203 Integrity Restored 1821 | . . . 1101 720 Core 1561 | . . . 964 597 Parts 260 | . . . 137 123 Protomatter Decayed 377 | . . . 147 230 Game ------ Seed DecoyAutogunLeg Manual? 0 Play Time 03:03:46 Cumulative 82.8 hours Start 2021.05.24 @ 20:41:20 End 2021.05.25 @ 13:32:30 Sessions 2 Manual Loads 0 Difficulty Explorer Special Mode Winter2019/RPGLIKE Game No. 22 Rogue 12 Adventurer 0 Explorer 10 Win Type - Total 1 Types 0/0/1/0/0/0/0/0/0 Lore% 53 Gallery% 65 Achievement% 53 Wizard Run 0 Options --------- ASCII 0 Keyboard 0 Movement Mouse Keybinds 0 Fullscreen 2 Font 24/Proggy Map View 76x50 Tactical HUD 1 Map Filters NONE Filters NONE Steam 1 RUN: 9a2c9ae2-9c6c-4a7e-9b2e-ae0615bc834f